Department family,Entity,Date,Expense Type,Expense area,Supplier,Transaction number,AP Amount (�),VAT registration number,
Department of Health,NHS Barnsley CCG,28/02/2017,Cont Care-Learning Disab(<65),CHC ADULT FULLY FUNDED,ASC HEALTHCARE LTD,16181466,"52,744.00 ",,
Department of Health,NHS Barnsley CCG,31/01/2017,Cont Care-Learning Disab(<65),CHC ADULT FULLY FUNDED,ASC HEALTHCARE LTD,15903579,"58,395.14 ",,
Department of Health,NHS Barnsley CCG,28/02/2017,External Consultancy Fees,COMMISSIONING,ATTAIN COMMISIONING SERVICES LTD,16227429,"28,511.65 ",,
Department of Health,NHS Barnsley CCG,28/02/2017,C&M-PMS Contract Value,PRC DELEGATED CO-COMMISSIONING,BARNSLEY HEALTHCARE FEDERATION,16029779,"(32,895.18)",,
Department of Health,NHS Barnsley CCG,28/02/2017,C&M-PMS GP Statutory Levy,PRC DELEGATED CO-COMMISSIONING,BARNSLEY HEALTHCARE FEDERATION,16029779,(142.85),,
Department of Health,NHS Barnsley CCG,28/02/2017,C&M-PMS Out of Hours Opt Outs,PRC DELEGATED CO-COMMISSIONING,BARNSLEY HEALTHCARE FEDERATION,16029779,(108.99),,
Department of Health,NHS Barnsley CCG,28/02/2017,C&M-PMS Voluntary Levy,PRC DELEGATED CO-COMMISSIONING,BARNSLEY HEALTHCARE FEDERATION,16029779,(24.99),,
Department of Health,NHS Barnsley CCG,28/02/2017,ME-PMS GP Pension EEs-PMS,PRC DELEGATED CO-COMMISSIONING,BARNSLEY HEALTHCARE FEDERATION,16029779,(704.17),,
Department of Health,NHS Barnsley CCG,28/02/2017,ME-PMS GP Pension ERs Adjs - PMS,PRC DELEGATED CO-COMMISSIONING,BARNSLEY HEALTHCARE FEDERATION,16029779,(805.57),,
Department of Health,NHS Barnsley CCG,28/02/2017,C&M-PMS Contract Value,PRC DELEGATED CO-COMMISSIONING,BARNSLEY HEALTHCARE FEDERATION,16054101,"70,588.17 ",,
Department of Health,NHS Barnsley CCG,28/02/2017,C&M-PMS DES Practice Doc Repatriation,PRC DELEGATED CO-COMMISSIONING,BARNSLEY HEALTHCARE FEDERATION,16054101,50.00 ,,
Department of Health,NHS Barnsley CCG,28/02/2017,C&M-PMS Out of Hours Opt Outs,PRC DELEGATED CO-COMMISSIONING,BARNSLEY HEALTHCARE FEDERATION,16054101,"(1,765.12)",,
Department of Health,NHS Barnsley CCG,28/02/2017,C&M-PMS Prem Healthcentre Rent,PRC DELEGATED CO-COMMISSIONING,BARNSLEY HEALTHCARE FEDERATION,16054101,"10,835.69 ",,
Department of Health,NHS Barnsley CCG,28/02/2017,C&M-PMS QOF Aspiration,PRC DELEGATED CO-COMMISSIONING,BARNSLEY HEALTHCARE FEDERATION,16054101,"4,195.24 ",,
Department of Health,NHS Barnsley CCG,28/02/2017,C&M-APMS Contract Value,PRC DELEGATED CO-COMMISSIONING,BARNSLEY HEALTHCARE FEDERATION,16054108,"24,563.76 ",,
Department of Health,NHS Barnsley CCG,28/02/2017,C&M-APMS DES Practice Doc Repatriation,PRC DELEGATED CO-COMMISSIONING,BARNSLEY HEALTHCARE FEDERATION,16054108,100.00 ,,
Department of Health,NHS Barnsley CCG,28/02/2017,C&M-APMS OOH Opt Outs,PRC DELEGATED CO-COMMISSIONING,BARNSLEY HEALTHCARE FEDERATION,16054108,2.84 ,,
Department of Health,NHS Barnsley CCG,28/02/2017,C&M-APMS Prem Actual Rent,PRC DELEGATED CO-COMMISSIONING,BARNSLEY HEALTHCARE FEDERATION,16054108,"1,429.55 ",,
Department of Health,NHS Barnsley CCG,28/02/2017,C&M-APMS Prem Rates,PRC DELEGATED CO-COMMISSIONING,BARNSLEY HEALTHCARE FEDERATION,16054108,377.52 ,,
Department of Health,NHS Barnsley CCG,28/02/2017,C&M-APMS QOF Aspiration,PRC DELEGATED CO-COMMISSIONING,BARNSLEY HEALTHCARE FEDERATION,16054108,"2,248.38 ",,
Department of Health,NHS Barnsley CCG,28/02/2017,C&M-PMS Contract Value,PRC DELEGATED CO-COMMISSIONING,BARNSLEY HEALTHCARE FEDERATION,16054108,20.68 ,,
Department of Health,NHS Barnsley CCG,28/02/2017,C&M-PMS Out of Hours Opt Outs,PRC DELEGATED CO-COMMISSIONING,BARNSLEY HEALTHCARE FEDERATION,16054108,15.23 ,,
Department of Health,NHS Barnsley CCG,28/02/2017,C&M-APMS Contract Value,PRC DELEGATED CO-COMMISSIONING,BARNSLEY HEALTHCARE FEDERATION,16054109,496.62 ,,
Department of Health,NHS Barnsley CCG,28/02/2017,C&M-APMS OOH Opt Outs,PRC DELEGATED CO-COMMISSIONING,BARNSLEY HEALTHCARE FEDERATION,16054109,"30,415.92 ",,
Department of Health,NHS Barnsley CCG,28/02/2017,C&M-APMS Prem Other,PRC DELEGATED CO-COMMISSIONING,BARNSLEY HEALTHCARE FEDERATION,16054109,"6,795.48 ",,
Department of Health,NHS Barnsley CCG,28/02/2017,C&M-APMS QOF Aspiration,PRC DELEGATED CO-COMMISSIONING,BARNSLEY HEALTHCARE FEDERATION,16054109,"1,999.71 ",,
Department of Health,NHS Barnsley CCG,28/02/2017,C&M-PMS DES Practice Doc Repatriation,PRC DELEGATED CO-COMMISSIONING,BARNSLEY HEALTHCARE FEDERATION,16054109,50.00 ,,
Department of Health,NHS Barnsley CCG,28/02/2017,C&M-APMS Contract Value,PRC DELEGATED CO-COMMISSIONING,BARNSLEY HEALTHCARE FEDERATION,16054110,"32,349.56 ",,
Department of Health,NHS Barnsley CCG,28/02/2017,C&M-APMS OOH Opt Outs,PRC DELEGATED CO-COMMISSIONING,BARNSLEY HEALTHCARE FEDERATION,16054110,295.26 ,,
Department of Health,NHS Barnsley CCG,28/02/2017,C&M-APMS QOF Aspiration,PRC DELEGATED CO-COMMISSIONING,BARNSLEY HEALTHCARE FEDERATION,16054110,"2,478.09 ",,
Department of Health,NHS Barnsley CCG,28/02/2017,C&M-PMS DES Practice Doc Repatriation,PRC DELEGATED CO-COMMISSIONING,BARNSLEY HEALTHCARE FEDERATION,16054110,50.00 ,,
Department of Health,NHS Barnsley CCG,31/01/2017,Hcare Srv Rec Fdtn Trust-CQUIN,ACUTE COMMISSIONING,BARNSLEY HOSPITAL NHS FOUNDATION TRUST,15868005,"252,534.00 ",,
Department of Health,NHS Barnsley CCG,31/01/2017,Hcare Srv Rec Fdtn Trust-Contract Baseline,ACUTE COMMISSIONING,BARNSLEY HOSPITAL NHS FOUNDATION TRUST,15868005,"10,595,634.00 ",,
Department of Health,NHS Barnsley CCG,31/01/2017,Telecoms-Data lines,PRIMARY CARE IT,BARNSLEY HOSPITAL NHS FOUNDATION TRUST,15903750,"37,627.00 ",,
Department of Health,NHS Barnsley CCG,31/01/2017,Clinical&Medical-Serv Recd-F Trsts,PROGRAMME PROJECTS,BARNSLEY HOSPITAL NHS FOUNDATION TRUST,15715984,"39,271.79 ",,
Department of Health,NHS Barnsley CCG,28/02/2017,Cont Care-Learning Disab(65+),CHC ADULT FULLY FUNDED,BARNSLEY METROPOLITAN BOROUGH COUNCIL,15966033,"21,648.25 ",,
Department of Health,NHS Barnsley CCG,28/02/2017,Cont Care-Learning Disab(<65),CHC ADULT FULLY FUNDED,BARNSLEY METROPOLITAN BOROUGH COUNCIL,15966033,"74,448.14 ",,
Department of Health,NHS Barnsley CCG,28/02/2017,Cont Care-Learning Disab(65+),CHC ADULT FULLY FUNDED,BARNSLEY METROPOLITAN BOROUGH COUNCIL,15966039,"21,648.25 ",,
Department of Health,NHS Barnsley CCG,28/02/2017,Cont Care-Learning Disab(<65),CHC ADULT FULLY FUNDED,BARNSLEY METROPOLITAN BOROUGH COUNCIL,15966039,"74,448.14 ",,
Department of Health,NHS Barnsley CCG,28/02/2017,Cont Care-Learning Disab(65+),CHC ADULT FULLY FUNDED,BARNSLEY METROPOLITAN BOROUGH COUNCIL,15966047,"670,400.00 ",,
Department of Health,NHS Barnsley CCG,28/02/2017,Cont Care-Learning Disab(<65),CHC ADULT FULLY FUNDED,BARNSLEY METROPOLITAN BOROUGH COUNCIL,15966047,"(574,303.61)",,
Department of Health,NHS Barnsley CCG,28/02/2017,Cont Care-Learning Disab(<65),CHC ADULT FULLY FUNDED,BARNSLEY METROPOLITAN BOROUGH COUNCIL,16102142,"32,578.00 ",,
Department of Health,NHS Barnsley CCG,28/02/2017,Cont Care-Learning Disab(<65),CHC ADULT FULLY FUNDED,BARNSLEY METROPOLITAN BOROUGH COUNCIL,16102174,"29,461.25 ",,
Department of Health,NHS Barnsley CCG,28/02/2017,Cont Care-Learning Disab(<65),CHC ADULT FULLY FUNDED,BARNSLEY METROPOLITAN BOROUGH COUNCIL,16102187,"30,098.25 ",,
Department of Health,NHS Barnsley CCG,28/02/2017,Cont Care-Learning Disab(65+),CHC ADULT FULLY FUNDED,BARNSLEY METROPOLITAN BOROUGH COUNCIL,16102199,"32,009.25 ",,
Department of Health,NHS Barnsley CCG,28/02/2017,Cont Care- Palliative Care,CHC ADULT FULLY FUNDED,BARNSLEY METROPOLITAN BOROUGH COUNCIL,16181749,"16,735.42 ",,
Department of Health,NHS Barnsley CCG,28/02/2017,Cont Care-Learning Disab(65+),CHC ADULT FULLY FUNDED,BARNSLEY METROPOLITAN BOROUGH COUNCIL,16181749,"21,648.25 ",,
Department of Health,NHS Barnsley CCG,28/02/2017,Cont Care-Learning Disab(<65),CHC ADULT FULLY FUNDED,BARNSLEY METROPOLITAN BOROUGH COUNCIL,16181749,"57,712.72 ",,
Department of Health,NHS Barnsley CCG,28/02/2017,Clinical&Medical-Commercial Sector,ACUTE COMMISSIONING,CARE UK CLINICAL SERVICES LTD,15976395,"27,286.07 ",,
Department of Health,NHS Barnsley CCG,28/02/2017,Clinical&Medical-Commercial Sector,ACUTE COMMISSIONING,CLAREMONT HOSPITAL,16038018,"48,289.00 ",,
Department of Health,NHS Barnsley CCG,28/02/2017,Cont Care-Learning Disab(<65),CHC ADULT JOINT FUNDED,DANSHELL HEALTHCARE LTD,16181435,"31,220.00 ",,
Department of Health,NHS Barnsley CCG,28/02/2017,Cont Care-Learning Disab(<65),CHC ADULT JOINT FUNDED,DANSHELL HEALTHCARE LTD,16181764,"34,565.00 ",,
Department of Health,NHS Barnsley CCG,31/01/2017,Cont Care-Learning Disab(<65),CHC ADULT JOINT FUNDED,DANSHELL HEALTHCARE LTD,15903569,"34,565.00 ",,
Department of Health,NHS Barnsley CCG,28/02/2017,C&M-GMS Global Sum,PRC DELEGATED CO-COMMISSIONING,NHS BARNSLEY CCG GP,16232188,"73,894.62 ",,
Department of Health,NHS Barnsley CCG,28/02/2017,C&M-GMS Prem Healthcentre Rent,PRC DELEGATED CO-COMMISSIONING,NHS BARNSLEY CCG GP,16232188,"24,168.15 ",,
Department of Health,NHS Barnsley CCG,28/02/2017,C&M-GMS QOF Aspiration,PRC DELEGATED CO-COMMISSIONING,NHS BARNSLEY CCG GP,16232188,"6,825.50 ",,
Department of Health,NHS Barnsley CCG,28/02/2017,ME - GMS GP Prior Year ERs,PRC DELEGATED CO-COMMISSIONING,NHS BARNSLEY CCG GP,16232188,"1,525.34 ",,
Department of Health,NHS Barnsley CCG,28/02/2017,ME-GMS GP Prior Year EEs,PRC DELEGATED CO-COMMISSIONING,NHS BARNSLEY CCG GP,16232188,"1,333.34 ",,
Department of Health,NHS Barnsley CCG,28/02/2017,C&M-PMS Contract Value,PRC DELEGATED CO-COMMISSIONING,NHS BARNSLEY CCG GP,16029777,"(42,469.41)",,
Department of Health,NHS Barnsley CCG,28/02/2017,C&M-PMS GP Statutory Levy,PRC DELEGATED CO-COMMISSIONING,NHS BARNSLEY CCG GP,16029777,(205.38),,
Department of Health,NHS Barnsley CCG,28/02/2017,C&M-PMS Out of Hours Opt Outs,PRC DELEGATED CO-COMMISSIONING,NHS BARNSLEY CCG GP,16029777,(37.34),,
Department of Health,NHS Barnsley CCG,28/02/2017,C&M-PMS Voluntary Levy,PRC DELEGATED CO-COMMISSIONING,NHS BARNSLEY CCG GP,16029777,(35.92),,
Department of Health,NHS Barnsley CCG,28/02/2017,C&M-PMS Contract Value,PRC DELEGATED CO-COMMISSIONING,NHS BARNSLEY CCG GP,16054095,"88,321.86 ",,
Department of Health,NHS Barnsley CCG,28/02/2017,C&M-PMS DES Practice Doc Repatriation,PRC DELEGATED CO-COMMISSIONING,NHS BARNSLEY CCG GP,16054095,50.00 ,,
Department of Health,NHS Barnsley CCG,28/02/2017,C&M-PMS Out of Hours Opt Outs,PRC DELEGATED CO-COMMISSIONING,NHS BARNSLEY CCG GP,16054095,"(2,228.76)",,
Department of Health,NHS Barnsley CCG,28/02/2017,C&M-PMS QOF Aspiration,PRC DELEGATED CO-COMMISSIONING,NHS BARNSLEY CCG GP,16054095,"4,886.06 ",,
Department of Health,NHS Barnsley CCG,31/01/2017,Hcare Srv Rec Fdtn Trust-Contract Baseline,ACUTE COMMISSIONING,DONCASTER AND BASSETLAW HOSPITALS NHS FOUNDATION TRUST,15694006,"(121,160.00)",,
Department of Health,NHS Barnsley CCG,31/01/2017,Hcare Srv Rec Fdtn Trust-Contract Baseline,ACUTE COMMISSIONING,DONCASTER AND BASSETLAW HOSPITALS NHS FOUNDATION TRUST,15867914,"558,167.00 ",,
Department of Health,NHS Barnsley CCG,28/02/2017,C&M-PMS Contract Value,PRC DELEGATED CO-COMMISSIONING,NHS BARNSLEY CCG GP,16029669,"(81,493.49)",,
Department of Health,NHS Barnsley CCG,28/02/2017,C&M-PMS GP Statutory Levy,PRC DELEGATED CO-COMMISSIONING,NHS BARNSLEY CCG GP,16029669,(357.33),,
Department of Health,NHS Barnsley CCG,28/02/2017,C&M-PMS Out of Hours Opt Outs,PRC DELEGATED CO-COMMISSIONING,NHS BARNSLEY CCG GP,16029669,(64.54),,
Department of Health,NHS Barnsley CCG,28/02/2017,C&M-PMS Voluntary Levy,PRC DELEGATED CO-COMMISSIONING,NHS BARNSLEY CCG GP,16029669,(62.50),,
Department of Health,NHS Barnsley CCG,28/02/2017,ME-PMS GP Pension EEs-PMS,PRC DELEGATED CO-COMMISSIONING,NHS BARNSLEY CCG GP,16029669,"(7,931.25)",,
Department of Health,NHS Barnsley CCG,28/02/2017,ME-PMS GP Pension ERs Adjs - PMS,PRC DELEGATED CO-COMMISSIONING,NHS BARNSLEY CCG GP,16029669,"(8,401.24)",,
Department of Health,NHS Barnsley CCG,28/02/2017,C&M-PMS Contract Value,PRC DELEGATED CO-COMMISSIONING,NHS BARNSLEY CCG GP,16054090,"165,167.60 ",,
Department of Health,NHS Barnsley CCG,28/02/2017,C&M-PMS DES Minor Surgery,PRC DELEGATED CO-COMMISSIONING,NHS BARNSLEY CCG GP,16054090,"1,790.04 ",,
Department of Health,NHS Barnsley CCG,28/02/2017,C&M-PMS DES Practice Doc Repatriation,PRC DELEGATED CO-COMMISSIONING,NHS BARNSLEY CCG GP,16054090,100.00 ,,
Department of Health,NHS Barnsley CCG,28/02/2017,C&M-PMS Out of Hours Opt Outs,PRC DELEGATED CO-COMMISSIONING,NHS BARNSLEY CCG GP,16054090,"(4,239.31)",,
Department of Health,NHS Barnsley CCG,28/02/2017,C&M-PMS Prem Healthcentre Rent,PRC DELEGATED CO-COMMISSIONING,NHS BARNSLEY CCG GP,16054090,"19,781.47 ",,
Department of Health,NHS Barnsley CCG,28/02/2017,C&M-PMS Prem Notional Rent,PRC DELEGATED CO-COMMISSIONING,NHS BARNSLEY CCG GP,16054090,"1,833.33 ",,
Department of Health,NHS Barnsley CCG,28/02/2017,C&M-PMS Prem Rates,PRC DELEGATED CO-COMMISSIONING,NHS BARNSLEY CCG GP,16054090,270.23 ,,
Department of Health,NHS Barnsley CCG,28/02/2017,C&M-PMS QOF Aspiration,PRC DELEGATED CO-COMMISSIONING,NHS BARNSLEY CCG GP,16054090,"9,268.60 ",,
Department of Health,NHS Barnsley CCG,28/02/2017,C&M-PMS Contract Value,PRC DELEGATED CO-COMMISSIONING,NHS BARNSLEY CCG GP,16054091,"28,512.10 ",,
Department of Health,NHS Barnsley CCG,28/02/2017,C&M-PMS DES Practice Doc Repatriation,PRC DELEGATED CO-COMMISSIONING,NHS BARNSLEY CCG GP,16054091,50.00 ,,
Department of Health,NHS Barnsley CCG,28/02/2017,C&M-PMS Out of Hours Opt Outs,PRC DELEGATED CO-COMMISSIONING,NHS BARNSLEY CCG GP,16054091,(745.56),,
Department of Health,NHS Barnsley CCG,28/02/2017,C&M-PMS Prem Actual Rent,PRC DELEGATED CO-COMMISSIONING,NHS BARNSLEY CCG GP,16054091,674.50 ,,
Department of Health,NHS Barnsley CCG,28/02/2017,C&M-PMS QOF Aspiration,PRC DELEGATED CO-COMMISSIONING,NHS BARNSLEY CCG GP,16054091,"1,375.99 ",,
Department of Health,NHS Barnsley CCG,28/02/2017,C&M-PMS Contract Value,PRC DELEGATED CO-COMMISSIONING,NHS BARNSLEY CCG GP,16029674,"(42,224.08)",,
Department of Health,NHS Barnsley CCG,28/02/2017,C&M-PMS GP Statutory Levy,PRC DELEGATED CO-COMMISSIONING,NHS BARNSLEY CCG GP,16029674,(224.14),,
Department of Health,NHS Barnsley CCG,28/02/2017,C&M-PMS Out of Hours Opt Outs,PRC DELEGATED CO-COMMISSIONING,NHS BARNSLEY CCG GP,16029674,(95.84),,
Department of Health,NHS Barnsley CCG,28/02/2017,C&M-PMS Voluntary Levy,PRC DELEGATED CO-COMMISSIONING,NHS BARNSLEY CCG GP,16029674,(39.21),,
Department of Health,NHS Barnsley CCG,28/02/2017,ME-PMS GP Pension EEs-PMS,PRC DELEGATED CO-COMMISSIONING,NHS BARNSLEY CCG GP,16029674,"(3,522.50)",,
Department of Health,NHS Barnsley CCG,28/02/2017,ME-PMS GP Pension ERs Adjs - PMS,PRC DELEGATED CO-COMMISSIONING,NHS BARNSLEY CCG GP,16029674,"(3,598.83)",,
Department of Health,NHS Barnsley CCG,28/02/2017,C&M-PMS Contract Value,PRC DELEGATED CO-COMMISSIONING,NHS BARNSLEY CCG GP,16054093,"90,390.94 ",,
Department of Health,NHS Barnsley CCG,28/02/2017,C&M-PMS DES Learn Dsblty Hlth Chk,PRC DELEGATED CO-COMMISSIONING,NHS BARNSLEY CCG GP,16054093,"1,508.00 ",,
Department of Health,NHS Barnsley CCG,28/02/2017,C&M-PMS DES Minor Surgery,PRC DELEGATED CO-COMMISSIONING,NHS BARNSLEY CCG GP,16054093,"1,150.74 ",,
Department of Health,NHS Barnsley CCG,28/02/2017,C&M-PMS DES Practice Doc Repatriation,PRC DELEGATED CO-COMMISSIONING,NHS BARNSLEY CCG GP,16054093,100.00 ,,
Department of Health,NHS Barnsley CCG,28/02/2017,C&M-PMS Out of Hours Opt Outs,PRC DELEGATED CO-COMMISSIONING,NHS BARNSLEY CCG GP,16054093,"(2,381.67)",,
Department of Health,NHS Barnsley CCG,28/02/2017,C&M-PMS Prem Healthcentre Rent,PRC DELEGATED CO-COMMISSIONING,NHS BARNSLEY CCG GP,16054093,"21,557.03 ",,
Department of Health,NHS Barnsley CCG,28/02/2017,C&M-PMS QOF Aspiration,PRC DELEGATED CO-COMMISSIONING,NHS BARNSLEY CCG GP,16054093,"4,879.28 ",,
Department of Health,NHS Barnsley CCG,28/02/2017,C&M-GMS DES Learn Dsblty Hlth Chk,PRC DELEGATED CO-COMMISSIONING,NHS BARNSLEY CCG GP,16214765,232.00 ,,
Department of Health,NHS Barnsley CCG,28/02/2017,C&M-GMS Global Sum,PRC DELEGATED CO-COMMISSIONING,NHS BARNSLEY CCG GP,16214765,"67,123.92 ",,
Department of Health,NHS Barnsley CCG,28/02/2017,C&M-GMS Prem Notional Rent,PRC DELEGATED CO-COMMISSIONING,NHS BARNSLEY CCG GP,16214765,"4,483.33 ",,
Department of Health,NHS Barnsley CCG,28/02/2017,C&M-GMS Prem Rates,PRC DELEGATED CO-COMMISSIONING,NHS BARNSLEY CCG GP,16214765,"1,751.93 ",,
Department of Health,NHS Barnsley CCG,28/02/2017,C&M-GMS QOF Aspiration,PRC DELEGATED CO-COMMISSIONING,NHS BARNSLEY CCG GP,16214765,"8,046.05 ",,
Department of Health,NHS Barnsley CCG,28/02/2017,C&M-GMS DES UNPLANNED ADMISSIONS,PRC DELEGATED CO-COMMISSIONING,NHS BARNSLEY CCG GP,16214767,"6,309.38 ",,
Department of Health,NHS Barnsley CCG,28/02/2017,C&M-GMS Global Sum,PRC DELEGATED CO-COMMISSIONING,NHS BARNSLEY CCG GP,16214767,"62,135.82 ",,
Department of Health,NHS Barnsley CCG,28/02/2017,C&M-GMS Prem Healthcentre Rent,PRC DELEGATED CO-COMMISSIONING,NHS BARNSLEY CCG GP,16214767,"3,289.55 ",,
Department of Health,NHS Barnsley CCG,28/02/2017,C&M-GMS Prem Rates,PRC DELEGATED CO-COMMISSIONING,NHS BARNSLEY CCG GP,16214767,677.60 ,,
Department of Health,NHS Barnsley CCG,28/02/2017,C&M-GMS QOF Aspiration,PRC DELEGATED CO-COMMISSIONING,NHS BARNSLEY CCG GP,16214767,"6,884.36 ",,
Department of Health,NHS Barnsley CCG,28/02/2017,C&M-PMS Contract Value,PRC DELEGATED CO-COMMISSIONING,NHS BARNSLEY CCG GP,16029679,"(108,559.55)",,
Department of Health,NHS Barnsley CCG,28/02/2017,C&M-PMS GP Statutory Levy,PRC DELEGATED CO-COMMISSIONING,NHS BARNSLEY CCG GP,16029679,(560.14),,
Department of Health,NHS Barnsley CCG,28/02/2017,C&M-PMS Out of Hours Opt Outs,PRC DELEGATED CO-COMMISSIONING,NHS BARNSLEY CCG GP,16029679,(220.32),,
Department of Health,NHS Barnsley CCG,28/02/2017,C&M-PMS Voluntary Levy,PRC DELEGATED CO-COMMISSIONING,NHS BARNSLEY CCG GP,16029679,(97.98),,
Department of Health,NHS Barnsley CCG,28/02/2017,ME - PMS TPS Added Years Adj EEs,PRC DELEGATED CO-COMMISSIONING,NHS BARNSLEY CCG GP,16029679,(610.96),,
Department of Health,NHS Barnsley CCG,28/02/2017,ME-PMS GP Pension EEs-PMS,PRC DELEGATED CO-COMMISSIONING,NHS BARNSLEY CCG GP,16029679,"(13,675.09)",,
Department of Health,NHS Barnsley CCG,28/02/2017,ME-PMS GP Pension ERs Adjs - PMS,PRC DELEGATED CO-COMMISSIONING,NHS BARNSLEY CCG GP,16029679,"(14,201.82)",,
Department of Health,NHS Barnsley CCG,28/02/2017,C&M-PMS Baseline Adjustment,PRC DELEGATED CO-COMMISSIONING,NHS BARNSLEY CCG GP,16054096,188.08 ,,
Department of Health,NHS Barnsley CCG,28/02/2017,C&M-PMS Contract Value,PRC DELEGATED CO-COMMISSIONING,NHS BARNSLEY CCG GP,16054096,"230,142.36 ",,
Department of Health,NHS Barnsley CCG,28/02/2017,C&M-PMS DES Minor Surgery,PRC DELEGATED CO-COMMISSIONING,NHS BARNSLEY CCG GP,16054096,"9,589.50 ",,
Department of Health,NHS Barnsley CCG,28/02/2017,C&M-PMS DES Practice Doc Repatriation,PRC DELEGATED CO-COMMISSIONING,NHS BARNSLEY CCG GP,16054096,400.00 ,,
Department of Health,NHS Barnsley CCG,28/02/2017,C&M-PMS Out of Hours Opt Outs,PRC DELEGATED CO-COMMISSIONING,NHS BARNSLEY CCG GP,16054096,"(5,753.11)",,
Department of Health,NHS Barnsley CCG,28/02/2017,C&M-PMS Prem Notional Rent,PRC DELEGATED CO-COMMISSIONING,NHS BARNSLEY CCG GP,16054096,"6,333.33 ",,
Department of Health,NHS Barnsley CCG,28/02/2017,C&M-PMS Prem Rates,PRC DELEGATED CO-COMMISSIONING,NHS BARNSLEY CCG GP,16054096,484.00 ,,
Department of Health,NHS Barnsley CCG,28/02/2017,C&M-PMS QOF Aspiration,PRC DELEGATED CO-COMMISSIONING,NHS BARNSLEY CCG GP,16054096,"13,009.21 ",,
Department of Health,NHS Barnsley CCG,28/02/2017,C&M-PMS Cost of Drugs -Dispensing,LOCAL ENHANCED SERVICES,NHS BARNSLEY CCG GP,16234046,"(98,535.06)",,
Department of Health,NHS Barnsley CCG,28/02/2017,C&M-PMS Prsc Chrgs Cll&Rmttd by GPs,PRC DELEGATED CO-COMMISSIONING,NHS BARNSLEY CCG GP,16234046,"(5,972.40)",,
Department of Health,NHS Barnsley CCG,28/02/2017,C&M-PMS Cost of Drugs -Dispensing,LOCAL ENHANCED SERVICES,NHS BARNSLEY CCG GP,16234047,"171,317.58 ",,
Department of Health,NHS Barnsley CCG,28/02/2017,C&M-PMS Prof fees Dispensing,PRC DELEGATED CO-COMMISSIONING,NHS BARNSLEY CCG GP,16234047,"32,193.54 ",,
Department of Health,NHS Barnsley CCG,28/02/2017,C&M-PMS Prsc Chrgs Cll&Rmttd by GPs,LOCAL ENHANCED SERVICES,NHS BARNSLEY CCG GP,16234047,"5,972.40 ",,
Department of Health,NHS Barnsley CCG,28/02/2017,C&M-GMS Global Sum,PRC DELEGATED CO-COMMISSIONING,NHS BARNSLEY CCG GP,16214769,"36,869.04 ",,
Department of Health,NHS Barnsley CCG,28/02/2017,C&M-GMS Prem Notional Rent,PRC DELEGATED CO-COMMISSIONING,NHS BARNSLEY CCG GP,16214769,"1,416.67 ",,
Department of Health,NHS Barnsley CCG,28/02/2017,C&M-GMS Prem Rates,PRC DELEGATED CO-COMMISSIONING,NHS BARNSLEY CCG GP,16214769,"1,042.62 ",,
Department of Health,NHS Barnsley CCG,28/02/2017,C&M-GMS QOF Aspiration,PRC DELEGATED CO-COMMISSIONING,NHS BARNSLEY CCG GP,16214769,"3,898.31 ",,
Department of Health,NHS Barnsley CCG,28/02/2017,C&M-PMS Contract Value,PRC DELEGATED CO-COMMISSIONING,NHS BARNSLEY CCG GP,16029677,"(39,969.01)",,
Department of Health,NHS Barnsley CCG,28/02/2017,C&M-PMS GP Statutory Levy,PRC DELEGATED CO-COMMISSIONING,NHS BARNSLEY CCG GP,16029677,(157.65),,
Department of Health,NHS Barnsley CCG,28/02/2017,C&M-PMS Out of Hours Opt Outs,PRC DELEGATED CO-COMMISSIONING,NHS BARNSLEY CCG GP,16029677,(31.46),,
Department of Health,NHS Barnsley CCG,28/02/2017,C&M-PMS Prem Healthcentre Rent,PRC DELEGATED CO-COMMISSIONING,NHS BARNSLEY CCG GP,16029677,(0.16),,
Department of Health,NHS Barnsley CCG,28/02/2017,C&M-PMS Voluntary Levy,PRC DELEGATED CO-COMMISSIONING,NHS BARNSLEY CCG GP,16029677,(27.58),,
Department of Health,NHS Barnsley CCG,28/02/2017,ME-PMS GP Pension EEs-PMS,PRC DELEGATED CO-COMMISSIONING,NHS BARNSLEY CCG GP,16029677,"(1,350.92)",,
Department of Health,NHS Barnsley CCG,28/02/2017,ME-PMS GP Pension ERs Adjs - PMS,PRC DELEGATED CO-COMMISSIONING,NHS BARNSLEY CCG GP,16029677,"(1,332.28)",,
Department of Health,NHS Barnsley CCG,28/02/2017,C&M-PMS Baseline Adjustment,PRC DELEGATED CO-COMMISSIONING,NHS BARNSLEY CCG GP,16054094,"5,074.17 ",,
Department of Health,NHS Barnsley CCG,28/02/2017,C&M-PMS Contract Value,PRC DELEGATED CO-COMMISSIONING,NHS BARNSLEY CCG GP,16054094,"77,230.97 ",,
Department of Health,NHS Barnsley CCG,28/02/2017,C&M-PMS DES Minor Surgery,PRC DELEGATED CO-COMMISSIONING,NHS BARNSLEY CCG GP,16054094,767.16 ,,
Department of Health,NHS Barnsley CCG,28/02/2017,C&M-PMS DES Practice Doc Repatriation,PRC DELEGATED CO-COMMISSIONING,NHS BARNSLEY CCG GP,16054094,50.00 ,,
Department of Health,NHS Barnsley CCG,28/02/2017,C&M-PMS Out of Hours Opt Outs,PRC DELEGATED CO-COMMISSIONING,NHS BARNSLEY CCG GP,16054094,"(1,790.77)",,
Department of Health,NHS Barnsley CCG,28/02/2017,C&M-PMS Prem Healthcentre Rent,PRC DELEGATED CO-COMMISSIONING,NHS BARNSLEY CCG GP,16054094,"2,989.68 ",,
Department of Health,NHS Barnsley CCG,28/02/2017,C&M-PMS Prem Notional Rent,PRC DELEGATED CO-COMMISSIONING,NHS BARNSLEY CCG GP,16054094,"7,833.33 ",,
Department of Health,NHS Barnsley CCG,28/02/2017,C&M-PMS Prem Rates,PRC DELEGATED CO-COMMISSIONING,NHS BARNSLEY CCG GP,16054094,"2,414.27 ",,
Department of Health,NHS Barnsley CCG,28/02/2017,C&M-PMS QOF Aspiration,PRC DELEGATED CO-COMMISSIONING,NHS BARNSLEY CCG GP,16054094,"2,466.00 ",,
Department of Health,NHS Barnsley CCG,28/02/2017,C&M-GMS GP Statutory Levy,PRC DELEGATED CO-COMMISSIONING,NHS BARNSLEY CCG GP,16214772,(442.76),,
Department of Health,NHS Barnsley CCG,28/02/2017,C&M-GMS Prem Rates,PRC DELEGATED CO-COMMISSIONING,NHS BARNSLEY CCG GP,16214772,"(1,826.48)",,
Department of Health,NHS Barnsley CCG,28/02/2017,C&M-GMS Voluntary Levy,PRC DELEGATED CO-COMMISSIONING,NHS BARNSLEY CCG GP,16214772,(77.45),,
Department of Health,NHS Barnsley CCG,28/02/2017,ME - GMS TPS Added Years Adj EEs,PRC DELEGATED CO-COMMISSIONING,NHS BARNSLEY CCG GP,16214772,(408.75),,
Department of Health,NHS Barnsley CCG,28/02/2017,ME-GMS GP Pension EEs,PRC DELEGATED CO-COMMISSIONING,NHS BARNSLEY CCG GP,16214772,"(11,548.85)",,
Department of Health,NHS Barnsley CCG,28/02/2017,ME-GMS GP Pension ERs Adjustments,PRC DELEGATED CO-COMMISSIONING,NHS BARNSLEY CCG GP,16214772,"(11,804.77)",,
Department of Health,NHS Barnsley CCG,28/02/2017,C&M-GMS DES Minor Surgery,PRC DELEGATED CO-COMMISSIONING,NHS BARNSLEY CCG GP,16214773,"2,557.20 ",,
Department of Health,NHS Barnsley CCG,28/02/2017,C&M-GMS Global Sum,PRC DELEGATED CO-COMMISSIONING,NHS BARNSLEY CCG GP,16214773,"95,631.70 ",,
Department of Health,NHS Barnsley CCG,28/02/2017,C&M-GMS Prem Notional Rent,PRC DELEGATED CO-COMMISSIONING,NHS BARNSLEY CCG GP,16214773,"6,208.33 ",,
Department of Health,NHS Barnsley CCG,28/02/2017,C&M-GMS Prem Rates,PRC DELEGATED CO-COMMISSIONING,NHS BARNSLEY CCG GP,16214773,"1,826.48 ",,
Department of Health,NHS Barnsley CCG,28/02/2017,C&M-GMS QOF Aspiration,PRC DELEGATED CO-COMMISSIONING,NHS BARNSLEY CCG GP,16214773,"10,127.48 ",,
Department of Health,NHS Barnsley CCG,28/02/2017,C&M-PMS Contract Value,PRC DELEGATED CO-COMMISSIONING,NHS BARNSLEY CCG GP,16029682,"(83,911.93)",,
Department of Health,NHS Barnsley CCG,28/02/2017,C&M-PMS GP Statutory Levy,PRC DELEGATED CO-COMMISSIONING,NHS BARNSLEY CCG GP,16029682,(396.19),,
Department of Health,NHS Barnsley CCG,28/02/2017,C&M-PMS Out of Hours Opt Outs,PRC DELEGATED CO-COMMISSIONING,NHS BARNSLEY CCG GP,16029682,(71.82),,
Department of Health,NHS Barnsley CCG,28/02/2017,C&M-PMS Voluntary Levy,PRC DELEGATED CO-COMMISSIONING,NHS BARNSLEY CCG GP,16029682,(69.30),,
Department of Health,NHS Barnsley CCG,28/02/2017,ME - PMS TPS Added Years Adj EEs,PRC DELEGATED CO-COMMISSIONING,NHS BARNSLEY CCG GP,16029682,(585.27),,
Department of Health,NHS Barnsley CCG,28/02/2017,ME-PMS GP Pension EEs-PMS,PRC DELEGATED CO-COMMISSIONING,NHS BARNSLEY CCG GP,16029682,"(7,539.34)",,
Department of Health,NHS Barnsley CCG,28/02/2017,ME-PMS GP Pension ERs Adjs - PMS,PRC DELEGATED CO-COMMISSIONING,NHS BARNSLEY CCG GP,16029682,"(7,678.24)",,
Department of Health,NHS Barnsley CCG,28/02/2017,C&M-PMS Contract Value,PRC DELEGATED CO-COMMISSIONING,NHS BARNSLEY CCG GP,16054098,"174,181.14 ",,
Department of Health,NHS Barnsley CCG,28/02/2017,C&M-PMS DES Minor Surgery,PRC DELEGATED CO-COMMISSIONING,NHS BARNSLEY CCG GP,16054098,"2,386.72 ",,
Department of Health,NHS Barnsley CCG,28/02/2017,C&M-PMS DES Practice Doc Repatriation,PRC DELEGATED CO-COMMISSIONING,NHS BARNSLEY CCG GP,16054098,50.00 ,,
Department of Health,NHS Barnsley CCG,28/02/2017,C&M-PMS Out of Hours Opt Outs,PRC DELEGATED CO-COMMISSIONING,NHS BARNSLEY CCG GP,16054098,"(4,571.21)",,
Department of Health,NHS Barnsley CCG,28/02/2017,C&M-PMS Prem Notional Rent,PRC DELEGATED CO-COMMISSIONING,NHS BARNSLEY CCG GP,16054098,"13,500.00 ",,
Department of Health,NHS Barnsley CCG,28/02/2017,C&M-PMS QOF Aspiration,PRC DELEGATED CO-COMMISSIONING,NHS BARNSLEY CCG GP,16054098,"9,037.78 ",,
Department of Health,NHS Barnsley CCG,28/02/2017,C&M-GMS DES Learn Dsblty Hlth Chk,PRC DELEGATED CO-COMMISSIONING,NHS BARNSLEY CCG GP,16214771,"2,088.00 ",,
Department of Health,NHS Barnsley CCG,28/02/2017,C&M-GMS Global Sum,PRC DELEGATED CO-COMMISSIONING,NHS BARNSLEY CCG GP,16214771,"85,541.61 ",,
Department of Health,NHS Barnsley CCG,28/02/2017,C&M-GMS Prem Healthcentre Rent,PRC DELEGATED CO-COMMISSIONING,NHS BARNSLEY CCG GP,16214771,"31,619.95 ",,
Department of Health,NHS Barnsley CCG,28/02/2017,C&M-GMS QOF Aspiration,PRC DELEGATED CO-COMMISSIONING,NHS BARNSLEY CCG GP,16214771,"9,007.62 ",,
Department of Health,NHS Barnsley CCG,28/02/2017,C&M-GMS DES Minor Surgery,PRC DELEGATED CO-COMMISSIONING,NHS BARNSLEY CCG GP,16214775,"1,363.84 ",,
Department of Health,NHS Barnsley CCG,28/02/2017,C&M-GMS Global Sum,PRC DELEGATED CO-COMMISSIONING,NHS BARNSLEY CCG GP,16214775,"71,076.84 ",,
Department of Health,NHS Barnsley CCG,28/02/2017,C&M-GMS Prem Rates,PRC DELEGATED CO-COMMISSIONING,NHS BARNSLEY CCG GP,16214775,"2,534.70 ",,
Department of Health,NHS Barnsley CCG,28/02/2017,C&M-GMS QOF Aspiration,PRC DELEGATED CO-COMMISSIONING,NHS BARNSLEY CCG GP,16214775,"9,545.99 ",,
Department of Health,NHS Barnsley CCG,28/02/2017,C&M-PMS Contract Value,PRC DELEGATED CO-COMMISSIONING,NHS BARNSLEY CCG GP,16029685,"(74,628.64)",,
Department of Health,NHS Barnsley CCG,28/02/2017,C&M-PMS GP Statutory Levy,PRC DELEGATED CO-COMMISSIONING,NHS BARNSLEY CCG GP,16029685,(398.69),,
Department of Health,NHS Barnsley CCG,28/02/2017,C&M-PMS Out of Hours Opt Outs,PRC DELEGATED CO-COMMISSIONING,NHS BARNSLEY CCG GP,16029685,(266.88),,
Department of Health,NHS Barnsley CCG,28/02/2017,C&M-PMS Voluntary Levy,PRC DELEGATED CO-COMMISSIONING,NHS BARNSLEY CCG GP,16029685,(69.74),,
Department of Health,NHS Barnsley CCG,28/02/2017,ME - PMS TPS Added Years Adj EEs,PRC DELEGATED CO-COMMISSIONING,NHS BARNSLEY CCG GP,16029685,(266.67),,
Department of Health,NHS Barnsley CCG,28/02/2017,ME-PMS GP Pension EEs-PMS,PRC DELEGATED CO-COMMISSIONING,NHS BARNSLEY CCG GP,16029685,"(7,526.25)",,
Department of Health,NHS Barnsley CCG,28/02/2017,ME-PMS GP Pension ERs Adjs - PMS,PRC DELEGATED CO-COMMISSIONING,NHS BARNSLEY CCG GP,16029685,"(8,186.76)",,
Department of Health,NHS Barnsley CCG,28/02/2017,C&M-PMS Contract Value,PRC DELEGATED CO-COMMISSIONING,NHS BARNSLEY CCG GP,16054099,"161,630.23 ",,
Department of Health,NHS Barnsley CCG,28/02/2017,C&M-PMS DES Minor Surgery,PRC DELEGATED CO-COMMISSIONING,NHS BARNSLEY CCG GP,16054099,"5,455.36 ",,
Department of Health,NHS Barnsley CCG,28/02/2017,C&M-PMS DES Practice Doc Repatriation,PRC DELEGATED CO-COMMISSIONING,NHS BARNSLEY CCG GP,16054099,300.00 ,,
Department of Health,NHS Barnsley CCG,28/02/2017,C&M-PMS Out of Hours Opt Outs,PRC DELEGATED CO-COMMISSIONING,NHS BARNSLEY CCG GP,16054099,"(4,208.43)",,
Department of Health,NHS Barnsley CCG,28/02/2017,C&M-PMS Prem Notional Rent,PRC DELEGATED CO-COMMISSIONING,NHS BARNSLEY CCG GP,16054099,"8,125.00 ",,
Department of Health,NHS Barnsley CCG,28/02/2017,C&M-PMS Prem Rates,PRC DELEGATED CO-COMMISSIONING,NHS BARNSLEY CCG GP,16054099,838.68 ,,
Department of Health,NHS Barnsley CCG,28/02/2017,C&M-PMS QOF Aspiration,PRC DELEGATED CO-COMMISSIONING,NHS BARNSLEY CCG GP,16054099,"9,498.69 ",,
Department of Health,NHS Barnsley CCG,28/02/2017,C&M-GMS Global Sum,PRC DELEGATED CO-COMMISSIONING,NHS BARNSLEY CCG GP,16214777,"21,755.18 ",,
Department of Health,NHS Barnsley CCG,28/02/2017,C&M-GMS Prem Notional Rent,PRC DELEGATED CO-COMMISSIONING,NHS BARNSLEY CCG GP,16214777,"1,572.92 ",,
Department of Health,NHS Barnsley CCG,28/02/2017,C&M-GMS Prem Rates,PRC DELEGATED CO-COMMISSIONING,NHS BARNSLEY CCG GP,16214777,433.58 ,,
Department of Health,NHS Barnsley CCG,28/02/2017,C&M-GMS QOF Aspiration,PRC DELEGATED CO-COMMISSIONING,NHS BARNSLEY CCG GP,16214777,"2,279.92 ",,
Department of Health,NHS Barnsley CCG,28/02/2017,C&M-PMS Contract Value,PRC DELEGATED CO-COMMISSIONING,NHS BARNSLEY CCG GP,16029686,"(78,597.09)",,
Department of Health,NHS Barnsley CCG,28/02/2017,C&M-PMS GP Statutory Levy,PRC DELEGATED CO-COMMISSIONING,NHS BARNSLEY CCG GP,16029686,(376.93),,
Department of Health,NHS Barnsley CCG,28/02/2017,C&M-PMS Out of Hours Opt Outs,PRC DELEGATED CO-COMMISSIONING,NHS BARNSLEY CCG GP,16029686,(128.96),,
Department of Health,NHS Barnsley CCG,28/02/2017,C&M-PMS Voluntary Levy,PRC DELEGATED CO-COMMISSIONING,NHS BARNSLEY CCG GP,16029686,(65.93),,
Department of Health,NHS Barnsley CCG,28/02/2017,ME-PMS GP Pension EEs-PMS,PRC DELEGATED CO-COMMISSIONING,NHS BARNSLEY CCG GP,16029686,"(6,209.58)",,
Department of Health,NHS Barnsley CCG,28/02/2017,ME-PMS GP Pension ERs Adjs - PMS,PRC DELEGATED CO-COMMISSIONING,NHS BARNSLEY CCG GP,16029686,"(6,542.26)",,
Department of Health,NHS Barnsley CCG,28/02/2017,C&M-PMS Contract Value,PRC DELEGATED CO-COMMISSIONING,NHS BARNSLEY CCG GP,16054100,"166,960.69 ",,
Department of Health,NHS Barnsley CCG,28/02/2017,C&M-PMS DES Learn Dsblty Hlth Chk,PRC DELEGATED CO-COMMISSIONING,NHS BARNSLEY CCG GP,16054100,"2,784.00 ",,
Department of Health,NHS Barnsley CCG,28/02/2017,C&M-PMS DES Minor Surgery,PRC DELEGATED CO-COMMISSIONING,NHS BARNSLEY CCG GP,16054100,"5,966.80 ",,
Department of Health,NHS Barnsley CCG,28/02/2017,C&M-PMS DES Practice Doc Repatriation,PRC DELEGATED CO-COMMISSIONING,NHS BARNSLEY CCG GP,16054100,100.00 ,,
Department of Health,NHS Barnsley CCG,28/02/2017,C&M-PMS Out of Hours Opt Outs,PRC DELEGATED CO-COMMISSIONING,NHS BARNSLEY CCG GP,16054100,"(4,416.18)",,
Department of Health,NHS Barnsley CCG,28/02/2017,C&M-PMS Prem Actual Rent,PRC DELEGATED CO-COMMISSIONING,NHS BARNSLEY CCG GP,16054100,"12,708.33 ",,
Department of Health,NHS Barnsley CCG,28/02/2017,C&M-PMS Prem Rates,PRC DELEGATED CO-COMMISSIONING,NHS BARNSLEY CCG GP,16054100,"2,153.66 ",,
Department of Health,NHS Barnsley CCG,28/02/2017,C&M-PMS QOF Aspiration,PRC DELEGATED CO-COMMISSIONING,NHS BARNSLEY CCG GP,16054100,"9,731.41 ",,
Department of Health,NHS Barnsley CCG,28/02/2017,C&M-PMS Contract Value,PRC DELEGATED CO-COMMISSIONING,NHS BARNSLEY CCG GP,16029689,"(67,727.16)",,
Department of Health,NHS Barnsley CCG,28/02/2017,C&M-PMS GP Statutory Levy,PRC DELEGATED CO-COMMISSIONING,NHS BARNSLEY CCG GP,16029689,(721.72),,
Department of Health,NHS Barnsley CCG,28/02/2017,C&M-PMS Out of Hours Opt Outs,PRC DELEGATED CO-COMMISSIONING,NHS BARNSLEY CCG GP,16029689,(191.00),,
Department of Health,NHS Barnsley CCG,28/02/2017,ME-PMS GP Pension EEs-PMS,PRC DELEGATED CO-COMMISSIONING,NHS BARNSLEY CCG GP,16029689,"(3,350.26)",,
Department of Health,NHS Barnsley CCG,28/02/2017,ME-PMS GP Pension ERs Adjs - PMS,PRC DELEGATED CO-COMMISSIONING,NHS BARNSLEY CCG GP,16029689,"(3,542.24)",,
Department of Health,NHS Barnsley CCG,28/02/2017,C&M-PMS Contract Value,PRC DELEGATED CO-COMMISSIONING,NHS BARNSLEY CCG GP,16054102,"145,700.70 ",,
Department of Health,NHS Barnsley CCG,28/02/2017,C&M-PMS DES Minor Surgery,PRC DELEGATED CO-COMMISSIONING,NHS BARNSLEY CCG GP,16054102,"3,153.88 ",,
Department of Health,NHS Barnsley CCG,28/02/2017,C&M-PMS DES Practice Doc Repatriation,PRC DELEGATED CO-COMMISSIONING,NHS BARNSLEY CCG GP,16054102,300.00 ,,
Department of Health,NHS Barnsley CCG,28/02/2017,C&M-PMS Out of Hours Opt Outs,PRC DELEGATED CO-COMMISSIONING,NHS BARNSLEY CCG GP,16054102,"(3,820.17)",,
Department of Health,NHS Barnsley CCG,28/02/2017,C&M-PMS Prem Actual Rent,PRC DELEGATED CO-COMMISSIONING,NHS BARNSLEY CCG GP,16054102,"8,566.67 ",,
Department of Health,NHS Barnsley CCG,28/02/2017,C&M-PMS QOF Aspiration,PRC DELEGATED CO-COMMISSIONING,NHS BARNSLEY CCG GP,16054102,"7,252.24 ",,
Department of Health,NHS Barnsley CCG,28/02/2017,C&M-GMS DES Learn Dsblty Hlth Chk,PRC DELEGATED CO-COMMISSIONING,NHS BARNSLEY CCG GP,16214779,"1,392.00 ",,
Department of Health,NHS Barnsley CCG,28/02/2017,C&M-GMS Global Sum,PRC DELEGATED CO-COMMISSIONING,NHS BARNSLEY CCG GP,16214779,"51,824.24 ",,
Department of Health,NHS Barnsley CCG,28/02/2017,C&M-GMS Prem Healthcentre Rent,PRC DELEGATED CO-COMMISSIONING,NHS BARNSLEY CCG GP,16214779,"20,522.19 ",,
Department of Health,NHS Barnsley CCG,28/02/2017,C&M-GMS QOF Aspiration,PRC DELEGATED CO-COMMISSIONING,NHS BARNSLEY CCG GP,16214779,"5,719.94 ",,
Department of Health,NHS Barnsley CCG,28/02/2017,C&M-PMS Contract Value,PRC DELEGATED CO-COMMISSIONING,NHS BARNSLEY CCG GP,16029691,"(85,601.00)",,
Department of Health,NHS Barnsley CCG,28/02/2017,C&M-PMS GP Statutory Levy,PRC DELEGATED CO-COMMISSIONING,NHS BARNSLEY CCG GP,16029691,(437.46),,
Department of Health,NHS Barnsley CCG,28/02/2017,C&M-PMS Out of Hours Opt Outs,PRC DELEGATED CO-COMMISSIONING,NHS BARNSLEY CCG GP,16029691,(94.51),,
Department of Health,NHS Barnsley CCG,28/02/2017,C&M-PMS Voluntary Levy,PRC DELEGATED CO-COMMISSIONING,NHS BARNSLEY CCG GP,16029691,(76.52),,
Department of Health,NHS Barnsley CCG,28/02/2017,ME-PMS GP Pension EEs-PMS,PRC DELEGATED CO-COMMISSIONING,NHS BARNSLEY CCG GP,16029691,"(6,753.36)",,
Department of Health,NHS Barnsley CCG,28/02/2017,ME-PMS GP Pension ERs Adjs - PMS,PRC DELEGATED CO-COMMISSIONING,NHS BARNSLEY CCG GP,16029691,"(7,565.93)",,
Department of Health,NHS Barnsley CCG,28/02/2017,C&M-PMS Contract Value,PRC DELEGATED CO-COMMISSIONING,NHS BARNSLEY CCG GP,16054103,"179,313.57 ",,
Department of Health,NHS Barnsley CCG,28/02/2017,C&M-PMS DES Learn Dsblty Hlth Chk,PRC DELEGATED CO-COMMISSIONING,NHS BARNSLEY CCG GP,16054103,696.00 ,,
Department of Health,NHS Barnsley CCG,28/02/2017,C&M-PMS DES Minor Surgery,PRC DELEGATED CO-COMMISSIONING,NHS BARNSLEY CCG GP,16054103,"4,389.86 ",,
Department of Health,NHS Barnsley CCG,28/02/2017,C&M-PMS DES Practice Doc Repatriation,PRC DELEGATED CO-COMMISSIONING,NHS BARNSLEY CCG GP,16054103,350.00 ,,
Department of Health,NHS Barnsley CCG,28/02/2017,C&M-PMS Out of Hours Opt Outs,PRC DELEGATED CO-COMMISSIONING,NHS BARNSLEY CCG GP,16054103,"(4,725.52)",,
Department of Health,NHS Barnsley CCG,28/02/2017,C&M-PMS PCO Locum Adop/Pat/Mat,PRC DELEGATED CO-COMMISSIONING,NHS BARNSLEY CCG GP,16054103,"8,726.12 ",,
Department of Health,NHS Barnsley CCG,28/02/2017,C&M-PMS Prem Rates,PRC DELEGATED CO-COMMISSIONING,NHS BARNSLEY CCG GP,16054103,"2,348.33 ",,
Department of Health,NHS Barnsley CCG,28/02/2017,C&M-PMS QOF Aspiration,PRC DELEGATED CO-COMMISSIONING,NHS BARNSLEY CCG GP,16054103,"11,102.10 ",,
Department of Health,NHS Barnsley CCG,28/02/2017,C&M-GMS Global Sum,PRC DELEGATED CO-COMMISSIONING,NHS BARNSLEY CCG GP,16214783,"42,328.22 ",,
Department of Health,NHS Barnsley CCG,28/02/2017,C&M-GMS Prem Notional Rent,PRC DELEGATED CO-COMMISSIONING,NHS BARNSLEY CCG GP,16214783,"2,541.67 ",,
Department of Health,NHS Barnsley CCG,28/02/2017,C&M-GMS Prem Rates,PRC DELEGATED CO-COMMISSIONING,NHS BARNSLEY CCG GP,16214783,973.29 ,,
Department of Health,NHS Barnsley CCG,28/02/2017,C&M-GMS QOF Aspiration,PRC DELEGATED CO-COMMISSIONING,NHS BARNSLEY CCG GP,16214783,"3,306.22 ",,
Department of Health,NHS Barnsley CCG,28/02/2017,Income tax <1Yr,BALANCE SHEET,HMRC,16098728,"63,024.47 ",,
Department of Health,NHS Barnsley CCG,28/02/2017,Income tax <1Yr-Student Loans,BALANCE SHEET,HMRC,16098728,"1,847.00 ",,
Department of Health,NHS Barnsley CCG,28/02/2017,National Insurance < 1 yr-NI- ERS,BALANCE SHEET,HMRC,16098728,"40,965.58 ",,
Department of Health,NHS Barnsley CCG,28/02/2017,National Insurance < 1 yr-NI-EES,BALANCE SHEET,HMRC,16098728,"27,921.26 ",,
Department of Health,NHS Barnsley CCG,28/02/2017,Statutory Mat Pay < 1 yr,BALANCE SHEET,HMRC,16098728,"(1,412.51)",,
Department of Health,NHS Barnsley CCG,28/02/2017,C&M-GMS Global Sum,PRC DELEGATED CO-COMMISSIONING,NHS BARNSLEY CCG GP,16214785,"77,698.82 ",,
Department of Health,NHS Barnsley CCG,28/02/2017,C&M-GMS Prem Healthcentre Rent,PRC DELEGATED CO-COMMISSIONING,NHS BARNSLEY CCG GP,16214785,"22,577.78 ",,
Department of Health,NHS Barnsley CCG,28/02/2017,C&M-GMS Prem Notional Rent,PRC DELEGATED CO-COMMISSIONING,NHS BARNSLEY CCG GP,16214785,"1,312.50 ",,
Department of Health,NHS Barnsley CCG,28/02/2017,C&M-GMS Prem Rates,PRC DELEGATED CO-COMMISSIONING,NHS BARNSLEY CCG GP,16214785,653.40 ,,
Department of Health,NHS Barnsley CCG,28/02/2017,C&M-GMS QOF Aspiration,PRC DELEGATED CO-COMMISSIONING,NHS BARNSLEY CCG GP,16214785,"8,766.44 ",,
Department of Health,NHS Barnsley CCG,28/02/2017,C&M-PMS Contract Value,PRC DELEGATED CO-COMMISSIONING,NHS BARNSLEY CCG GP,16029693,"(44,156.29)",,
Department of Health,NHS Barnsley CCG,28/02/2017,C&M-PMS GP Statutory Levy,PRC DELEGATED CO-COMMISSIONING,NHS BARNSLEY CCG GP,16029693,(212.48),,
Department of Health,NHS Barnsley CCG,28/02/2017,C&M-PMS Out of Hours Opt Outs,PRC DELEGATED CO-COMMISSIONING,NHS BARNSLEY CCG GP,16029693,(74.25),,
Department of Health,NHS Barnsley CCG,28/02/2017,C&M-PMS Voluntary Levy,PRC DELEGATED CO-COMMISSIONING,NHS BARNSLEY CCG GP,16029693,(37.17),,
Department of Health,NHS Barnsley CCG,28/02/2017,ME-PMS GP Pension EEs-PMS,PRC DELEGATED CO-COMMISSIONING,NHS BARNSLEY CCG GP,16029693,(846.79),,
Department of Health,NHS Barnsley CCG,28/02/2017,ME-PMS GP Pension ERs Adjs - PMS,PRC DELEGATED CO-COMMISSIONING,NHS BARNSLEY CCG GP,16029693,(896.97),,
Department of Health,NHS Barnsley CCG,28/02/2017,C&M-PMS Baseline Adjustment,PRC DELEGATED CO-COMMISSIONING,NHS BARNSLEY CCG GP,16054105,"3,001.58 ",,
Department of Health,NHS Barnsley CCG,28/02/2017,C&M-PMS Contract Value,PRC DELEGATED CO-COMMISSIONING,NHS BARNSLEY CCG GP,16054105,"89,607.28 ",,
Department of Health,NHS Barnsley CCG,28/02/2017,C&M-PMS DES Practice Doc Repatriation,PRC DELEGATED CO-COMMISSIONING,NHS BARNSLEY CCG GP,16054105,100.00 ,,
Department of Health,NHS Barnsley CCG,28/02/2017,C&M-PMS Out of Hours Opt Outs,PRC DELEGATED CO-COMMISSIONING,NHS BARNSLEY CCG GP,16054105,"(2,155.39)",,
Department of Health,NHS Barnsley CCG,28/02/2017,C&M-PMS Prem Healthcentre Rent,PRC DELEGATED CO-COMMISSIONING,NHS BARNSLEY CCG GP,16054105,"5,694.47 ",,
Department of Health,NHS Barnsley CCG,28/02/2017,C&M-PMS Prem Notional Rent,PRC DELEGATED CO-COMMISSIONING,NHS BARNSLEY CCG GP,16054105,"3,583.33 ",,
Department of Health,NHS Barnsley CCG,28/02/2017,C&M-PMS QOF Aspiration,PRC DELEGATED CO-COMMISSIONING,NHS BARNSLEY CCG GP,16054105,"4,198.69 ",,
Department of Health,NHS Barnsley CCG,28/02/2017,External Data Contracts,COMMISSIONING SCHEMES,KIER BUSINESS SERVICES LTD,15976412,"22,440.00 ",GB900540375,
Department of Health,NHS Barnsley CCG,28/02/2017,External Data Contracts,CORPORATE COSTS & SERVICES,KIER BUSINESS SERVICES LTD,15976412,"11,953.00 ",GB900540375,
Department of Health,NHS Barnsley CCG,28/02/2017,Telecoms-Data lines,PRIMARY CARE IT,KIER BUSINESS SERVICES LTD,15976412,"51,354.00 ",GB900540375,
Department of Health,NHS Barnsley CCG,28/02/2017,C&M-PMS Baseline Adjustment,PRC DELEGATED CO-COMMISSIONING,NHS BARNSLEY CCG GP,16054097,"1,386.00 ",,
Department of Health,NHS Barnsley CCG,28/02/2017,C&M-PMS Contract Value,PRC DELEGATED CO-COMMISSIONING,NHS BARNSLEY CCG GP,16054097,"47,451.09 ",,
Department of Health,NHS Barnsley CCG,28/02/2017,C&M-PMS DES Practice Doc Repatriation,PRC DELEGATED CO-COMMISSIONING,NHS BARNSLEY CCG GP,16054097,50.00 ,,
Department of Health,NHS Barnsley CCG,28/02/2017,C&M-PMS Out of Hours Opt Outs,PRC DELEGATED CO-COMMISSIONING,NHS BARNSLEY CCG GP,16054097,"(1,151.58)",,
Department of Health,NHS Barnsley CCG,28/02/2017,C&M-PMS Prem Notional Rent,PRC DELEGATED CO-COMMISSIONING,NHS BARNSLEY CCG GP,16054097,"4,145.83 ",,
Department of Health,NHS Barnsley CCG,28/02/2017,C&M-PMS QOF Aspiration,PRC DELEGATED CO-COMMISSIONING,NHS BARNSLEY CCG GP,16054097,"1,890.25 ",,
Department of Health,NHS Barnsley CCG,28/02/2017,C&M-PMS Cost of Drugs -Dispensing,LOCAL ENHANCED SERVICES,NHS BARNSLEY CCG GP,16233349,"30,964.45 ",,
Department of Health,NHS Barnsley CCG,28/02/2017,C&M-PMS Prof fees Dispensing,PRC DELEGATED CO-COMMISSIONING,NHS BARNSLEY CCG GP,16233349,"4,828.16 ",,
Department of Health,NHS Barnsley CCG,28/02/2017,C&M-PMS Prsc Chrgs Cll&Rmttd by GPs,LOCAL ENHANCED SERVICES,NHS BARNSLEY CCG GP,16233349,"1,293.60 ",,
Department of Health,NHS Barnsley CCG,28/02/2017,C&M-APMS Contract Value,PRC DELEGATED CO-COMMISSIONING,NHS BARNSLEY CCG GP,16054107,"17,989.10 ",,
Department of Health,NHS Barnsley CCG,28/02/2017,C&M-APMS OOH Opt Outs,PRC DELEGATED CO-COMMISSIONING,NHS BARNSLEY CCG GP,16054107,(827.83),,
Department of Health,NHS Barnsley CCG,28/02/2017,C&M-APMS Prem Actual Rent,PRC DELEGATED CO-COMMISSIONING,NHS BARNSLEY CCG GP,16054107,"4,744.50 ",,
Department of Health,NHS Barnsley CCG,28/02/2017,C&M-PMS Contract Value,PRC DELEGATED CO-COMMISSIONING,NHS BARNSLEY CCG GP,16054107,"15,738.82 ",,
Department of Health,NHS Barnsley CCG,28/02/2017,C&M-PMS DES Practice Doc Repatriation,PRC DELEGATED CO-COMMISSIONING,NHS BARNSLEY CCG GP,16054107,50.00 ,,
Department of Health,NHS Barnsley CCG,28/02/2017,C&M-PMS Prem Healthcentre Rent,PRC DELEGATED CO-COMMISSIONING,NHS BARNSLEY CCG GP,16054107,12.41 ,,
Department of Health,NHS Barnsley CCG,28/02/2017,C&M-PMS QOF Aspiration,PRC DELEGATED CO-COMMISSIONING,NHS BARNSLEY CCG GP,16054107,"1,422.76 ",,
Department of Health,NHS Barnsley CCG,28/02/2017,Hcare Srv Rec NHS Trust-CQUIN,ACUTE COMMISSIONING,LEEDS TEACHING HOSPITALS NHS TRUST,16102227,"2,247.19 ",,
Department of Health,NHS Barnsley CCG,28/02/2017,Hcare Srv Rec NHS Trust-Contract Baseline,ACUTE COMMISSIONING,LEEDS TEACHING HOSPITALS NHS TRUST,16102227,"23,566.85 ",,
Department of Health,NHS Barnsley CCG,31/01/2017,Hcare Srv Rec NHS Trust-CQUIN,ACUTE COMMISSIONING,LEEDS TEACHING HOSPITALS NHS TRUST,15836216,"1,583.54 ",,
Department of Health,NHS Barnsley CCG,31/01/2017,Hcare Srv Rec NHS Trust-Contract Baseline,ACUTE COMMISSIONING,LEEDS TEACHING HOSPITALS NHS TRUST,15836216,"73,789.76 ",,
Department of Health,NHS Barnsley CCG,31/01/2017,Hcare Srv Rec NHS Trust-CQUIN,ACUTE COMMISSIONING,MID YORKSHIRE HOSPITALS NHS TRUST,15867925,"2,195.00 ",,
Department of Health,NHS Barnsley CCG,31/01/2017,Hcare Srv Rec NHS Trust-Contract Baseline,ACUTE COMMISSIONING,MID YORKSHIRE HOSPITALS NHS TRUST,15867925,"205,233.00 ",,
Department of Health,NHS Barnsley CCG,28/02/2017,Chrgs from SLA,CONTINUING HEALTHCARE ASSESSMENT & SUPPORT,NHS DONCASTER CCG,15975990,"30,563.06 ",654447226,
Department of Health,NHS Barnsley CCG,28/02/2017,Chrgs from SLA,CONTINUING HEALTHCARE ASSESSMENT & SUPPORT,NHS DONCASTER CCG,15976016,"45,938.50 ",654447226,
Department of Health,NHS Barnsley CCG,31/01/2017,Chrgs from SLA,CONTINUING HEALTHCARE ASSESSMENT & SUPPORT,NHS DONCASTER CCG,15836154,"30,563.06 ",654447226,
Department of Health,NHS Barnsley CCG,31/01/2017,Chrgs from SLA,CONTINUING HEALTHCARE ASSESSMENT & SUPPORT,NHS DONCASTER CCG,15836164,"45,938.50 ",654447226,
Department of Health,NHS Barnsley CCG,28/02/2017,Other Gen Supplies & Srv,PRC DELEGATED CO-COMMISSIONING,NHS ENGLAND,15976270,"25,189.91 ",654 442 045,
Department of Health,NHS Barnsley CCG,28/02/2017,Other Gen Supplies & Srv,PATIENT TRANSPORT,NHS SHEFFIELD CCG,16102212,"99,873.00 ",,
Department of Health,NHS Barnsley CCG,28/02/2017,Clinical&Medical-Commercial Sector,ACUTE COMMISSIONING,PAIN MANAGEMENT SOLUTIONS LTD,16102342,"29,134.67 ",,
Department of Health,NHS Barnsley CCG,28/02/2017,Hcare Srv Rec Fdtn Trust-CQUIN,MENTAL HEALTH CONTRACTS,ROTHERHAM DONCASTER & SOUTH HUMBER MENTAL HEALTH NHS FOUNDATION TRUST,16037870,674.86 ,,
Department of Health,NHS Barnsley CCG,28/02/2017,Hcare Srv Rec Fdtn Trust-Contract Baseline,MENTAL HEALTH CONTRACTS,ROTHERHAM DONCASTER & SOUTH HUMBER MENTAL HEALTH NHS FOUNDATION TRUST,16037870,"49,161.69 ",,
Department of Health,NHS Barnsley CCG,31/01/2017,Cont Care-Learning Disab(<65),CHC ADULT FULLY FUNDED,ROTHERHAM METROPOLITAN BOROUGH COUNCIL,15903678,"47,170.47 ",,
Department of Health,NHS Barnsley CCG,31/01/2017,Cont Care-Learning Disab(<65),CHC ADULT FULLY FUNDED,ROTHERHAM METROPOLITAN BOROUGH COUNCIL,15903730,"(32,131.08)",,
Department of Health,NHS Barnsley CCG,31/01/2017,Hcare Srv Rec Fdtn Trust-CQUIN,COMMUNITY SERVICES,ROTHERHAM NHS FOUNDATION TRUST,15836382,"1,019.00 ",,
Department of Health,NHS Barnsley CCG,31/01/2017,Hcare Srv Rec Fdtn Trust-Contract Baseline,COMMUNITY SERVICES,ROTHERHAM NHS FOUNDATION TRUST,15836382,"40,746.00 ",,
Department of Health,NHS Barnsley CCG,31/01/2017,Hcare Srv Rec Fdtn Trust-CQUIN,ACUTE COMMISSIONING,ROTHERHAM NHS FOUNDATION TRUST,15836388,"10,072.00 ",,
Department of Health,NHS Barnsley CCG,31/01/2017,Hcare Srv Rec Fdtn Trust-Contract Baseline,ACUTE COMMISSIONING,ROTHERHAM NHS FOUNDATION TRUST,15836388,"956,207.00 ",,
Department of Health,NHS Barnsley CCG,28/02/2017,C&M-PMS Contract Value,PRC DELEGATED CO-COMMISSIONING,NHS BARNSLEY CCG GP,16029780,"(32,412.67)",,
Department of Health,NHS Barnsley CCG,28/02/2017,C&M-PMS GP Statutory Levy,PRC DELEGATED CO-COMMISSIONING,NHS BARNSLEY CCG GP,16029780,(167.75),,
Department of Health,NHS Barnsley CCG,28/02/2017,C&M-PMS Out of Hours Opt Outs,PRC DELEGATED CO-COMMISSIONING,NHS BARNSLEY CCG GP,16029780,(452.59),,
Department of Health,NHS Barnsley CCG,28/02/2017,C&M-PMS Voluntary Levy,PRC DELEGATED CO-COMMISSIONING,NHS BARNSLEY CCG GP,16029780,(29.34),,
Department of Health,NHS Barnsley CCG,28/02/2017,ME-PMS GP Pension EEs-PMS,PRC DELEGATED CO-COMMISSIONING,NHS BARNSLEY CCG GP,16029780,(593.75),,
Department of Health,NHS Barnsley CCG,28/02/2017,ME-PMS GP Pension ERs Adjs - PMS,PRC DELEGATED CO-COMMISSIONING,NHS BARNSLEY CCG GP,16029780,(679.25),,
Department of Health,NHS Barnsley CCG,28/02/2017,C&M-PMS Baseline Adjustment,PRC DELEGATED CO-COMMISSIONING,NHS BARNSLEY CCG GP,16054104,407.50 ,,
Department of Health,NHS Barnsley CCG,28/02/2017,C&M-PMS Contract Value,PRC DELEGATED CO-COMMISSIONING,NHS BARNSLEY CCG GP,16054104,"75,909.71 ",,
Department of Health,NHS Barnsley CCG,28/02/2017,C&M-PMS DES Minor Surgery,PRC DELEGATED CO-COMMISSIONING,NHS BARNSLEY CCG GP,16054104,"1,704.80 ",,
Department of Health,NHS Barnsley CCG,28/02/2017,C&M-PMS DES Practice Doc Repatriation,PRC DELEGATED CO-COMMISSIONING,NHS BARNSLEY CCG GP,16054104,100.00 ,,
Department of Health,NHS Barnsley CCG,28/02/2017,C&M-PMS Out of Hours Opt Outs,PRC DELEGATED CO-COMMISSIONING,NHS BARNSLEY CCG GP,16054104,"(1,701.08)",,
Department of Health,NHS Barnsley CCG,28/02/2017,C&M-PMS Prem Notional Rent,PRC DELEGATED CO-COMMISSIONING,NHS BARNSLEY CCG GP,16054104,"3,041.67 ",,
Department of Health,NHS Barnsley CCG,28/02/2017,C&M-PMS QOF Aspiration,PRC DELEGATED CO-COMMISSIONING,NHS BARNSLEY CCG GP,16054104,"2,458.56 ",,
Department of Health,NHS Barnsley CCG,28/02/2017,Hcare Srv Rec NHS Trust-Contract Penalties,PRC DELEGATED CO-COMMISSIONING,NHS BARNSLEY CCG GP,16037298,"41,232.50 ",,
Department of Health,NHS Barnsley CCG,28/02/2017,C&M-GMS Global Sum,PRC DELEGATED CO-COMMISSIONING,NHS BARNSLEY CCG GP,16213826,"56,938.76 ",,
Department of Health,NHS Barnsley CCG,28/02/2017,C&M-GMS Prem Actual Rent,PRC DELEGATED CO-COMMISSIONING,NHS BARNSLEY CCG GP,16213826,"8,873.25 ",,
Department of Health,NHS Barnsley CCG,28/02/2017,C&M-GMS QOF Aspiration,PRC DELEGATED CO-COMMISSIONING,NHS BARNSLEY CCG GP,16213826,"7,060.35 ",,
Department of Health,NHS Barnsley CCG,28/02/2017,Hcare Srv Rec Fdtn Trust-CQUIN,ACUTE COMMISSIONING,SHEFFIELD CHILDRENS NHS FOUNDATION TRUST,15976387,"4,128.49 ",,
Department of Health,NHS Barnsley CCG,28/02/2017,Hcare Srv Rec Fdtn Trust-Contract Baseline,ACUTE COMMISSIONING,SHEFFIELD CHILDRENS NHS FOUNDATION TRUST,15976387,"(59,879.83)",,
Department of Health,NHS Barnsley CCG,28/02/2017,Hcare Srv Rec Fdtn Trust-CQUIN,ACUTE COMMISSIONING,SHEFFIELD CHILDRENS NHS FOUNDATION TRUST,16102242,"2,045.48 ",,
Department of Health,NHS Barnsley CCG,28/02/2017,Hcare Srv Rec Fdtn Trust-Contract Baseline,ACUTE COMMISSIONING,SHEFFIELD CHILDRENS NHS FOUNDATION TRUST,16102242,"174,355.39 ",,
Department of Health,NHS Barnsley CCG,31/01/2017,Hcare Srv Rec Fdtn Trust-CQUIN,ACUTE COMMISSIONING,SHEFFIELD CHILDRENS NHS FOUNDATION TRUST,15694131,"2,045.48 ",,
Department of Health,NHS Barnsley CCG,31/01/2017,Hcare Srv Rec Fdtn Trust-Contract Baseline,ACUTE COMMISSIONING,SHEFFIELD CHILDRENS NHS FOUNDATION TRUST,15694131,"174,355.39 ",,
Department of Health,NHS Barnsley CCG,31/01/2017,Hcare Srv Rec Fdtn Trust-Contract Baseline,ACUTE COMMISSIONING,SHEFFIELD TEACHING HOSPITALS NHS FOUNDATION TRUST,15867933,"1,901,486.00 ",,
Department of Health,NHS Barnsley CCG,31/01/2017,Hcare Srv Rec Fdtn Trust-Contract Baseline,ACUTE COMMISSIONING,SHEFFIELD TEACHING HOSPITALS NHS FOUNDATION TRUST,15867941,"191,466.00 ",,
Department of Health,NHS Barnsley CCG,28/02/2017,Hcare Srv Rec Fdtn Trust-Contract Baseline,MENTAL HEALTH SERVICES - ADULTS,SOUTH WEST YORKSHIRE PARTNERSHIP NHS FOUNDATION TRUST,15976229,"161,602.00 ",,
Department of Health,NHS Barnsley CCG,28/02/2017,Continence Products,CHC ADULT FULLY FUNDED,SOUTH WEST YORKSHIRE PARTNERSHIP NHS FOUNDATION TRUST,15990169,"29,417.28 ",,
Department of Health,NHS Barnsley CCG,28/02/2017,Clinical&Medical-Serv Recd-F Trsts,PROGRAMME PROJECTS,SOUTH WEST YORKSHIRE PARTNERSHIP NHS FOUNDATION TRUST,16102260,"48,277.25 ",,
Department of Health,NHS Barnsley CCG,31/01/2017,Clinical&Medical-Voluntary Sector,CHILD AND ADOLESCENT MENTAL HEALTH,SOUTH WEST YORKSHIRE PARTNERSHIP NHS FOUNDATION TRUST,15889559,"(143,000.00)",,
Department of Health,NHS Barnsley CCG,31/01/2017,Hcare Srv Rec Fdtn Trust-Contract Baseline,MENTAL HEALTH SERVICES - ADULTS,SOUTH WEST YORKSHIRE PARTNERSHIP NHS FOUNDATION TRUST,15694014,"(200,000.00)",,
Department of Health,NHS Barnsley CCG,31/01/2017,Hcare Srv Rec Fdtn Trust-CQUIN,COMMUNITY SERVICES,SOUTH WEST YORKSHIRE PARTNERSHIP NHS FOUNDATION TRUST,15903840,"36,125.00 ",,
Department of Health,NHS Barnsley CCG,31/01/2017,Hcare Srv Rec Fdtn Trust-CQUIN,LEARNING DIFFICULTIES,SOUTH WEST YORKSHIRE PARTNERSHIP NHS FOUNDATION TRUST,15903840,"2,010.00 ",,
Department of Health,NHS Barnsley CCG,31/01/2017,Hcare Srv Rec Fdtn Trust-CQUIN,MENTAL HEALTH SERVICES - ADULTS,SOUTH WEST YORKSHIRE PARTNERSHIP NHS FOUNDATION TRUST,15903840,"24,553.00 ",,
Department of Health,NHS Barnsley CCG,31/01/2017,Hcare Srv Rec Fdtn Trust-CQUIN,MENTAL HEALTH SERVICES - OLDER PEOPLE,SOUTH WEST YORKSHIRE PARTNERSHIP NHS FOUNDATION TRUST,15903840,"4,322.00 ",,
Department of Health,NHS Barnsley CCG,31/01/2017,Hcare Srv Rec Fdtn Trust-Contract Baseline,COMMUNITY SERVICES,SOUTH WEST YORKSHIRE PARTNERSHIP NHS FOUNDATION TRUST,15903840,"2,901,982.00 ",,
Department of Health,NHS Barnsley CCG,31/01/2017,Hcare Srv Rec Fdtn Trust-Contract Baseline,LEARNING DIFFICULTIES,SOUTH WEST YORKSHIRE PARTNERSHIP NHS FOUNDATION TRUST,15903840,"160,876.00 ",,
Department of Health,NHS Barnsley CCG,31/01/2017,Hcare Srv Rec Fdtn Trust-Contract Baseline,MENTAL HEALTH SERVICES - ADULTS,SOUTH WEST YORKSHIRE PARTNERSHIP NHS FOUNDATION TRUST,15903840,"2,007,084.00 ",,
Department of Health,NHS Barnsley CCG,31/01/2017,Hcare Srv Rec Fdtn Trust-Contract Baseline,MENTAL HEALTH SERVICES - OLDER PEOPLE,SOUTH WEST YORKSHIRE PARTNERSHIP NHS FOUNDATION TRUST,15903840,"345,763.00 ",,
Department of Health,NHS Barnsley CCG,28/02/2017,C&M-PMS Contract Value,PRC DELEGATED CO-COMMISSIONING,NHS BARNSLEY CCG GP,16029695,"(60,971.01)",,
Department of Health,NHS Barnsley CCG,28/02/2017,C&M-PMS GP Statutory Levy,PRC DELEGATED CO-COMMISSIONING,NHS BARNSLEY CCG GP,16029695,(289.57),,
Department of Health,NHS Barnsley CCG,28/02/2017,C&M-PMS Out of Hours Opt Outs,PRC DELEGATED CO-COMMISSIONING,NHS BARNSLEY CCG GP,16029695,(86.60),,
Department of Health,NHS Barnsley CCG,28/02/2017,C&M-PMS Prem Healthcentre Rent,PRC DELEGATED CO-COMMISSIONING,NHS BARNSLEY CCG GP,16029695,(0.88),,
Department of Health,NHS Barnsley CCG,28/02/2017,C&M-PMS Voluntary Levy,PRC DELEGATED CO-COMMISSIONING,NHS BARNSLEY CCG GP,16029695,(50.65),,
Department of Health,NHS Barnsley CCG,28/02/2017,ME-PMS GP Pension EEs-PMS,PRC DELEGATED CO-COMMISSIONING,NHS BARNSLEY CCG GP,16029695,"(1,615.80)",,
Department of Health,NHS Barnsley CCG,28/02/2017,ME-PMS GP Pension ERs Adjs - PMS,PRC DELEGATED CO-COMMISSIONING,NHS BARNSLEY CCG GP,16029695,"(1,967.45)",,
Department of Health,NHS Barnsley CCG,28/02/2017,C&M-PMS Contract Value,PRC DELEGATED CO-COMMISSIONING,NHS BARNSLEY CCG GP,16054106,"128,551.23 ",,
Department of Health,NHS Barnsley CCG,28/02/2017,C&M-PMS DES Practice Doc Repatriation,PRC DELEGATED CO-COMMISSIONING,NHS BARNSLEY CCG GP,16054106,100.00 ,,
Department of Health,NHS Barnsley CCG,28/02/2017,C&M-PMS Out of Hours Opt Outs,PRC DELEGATED CO-COMMISSIONING,NHS BARNSLEY CCG GP,16054106,"(3,384.71)",,
Department of Health,NHS Barnsley CCG,28/02/2017,C&M-PMS Prem Actual Rent,PRC DELEGATED CO-COMMISSIONING,NHS BARNSLEY CCG GP,16054106,336.75 ,,
Department of Health,NHS Barnsley CCG,28/02/2017,C&M-PMS Prem Healthcentre Rent,PRC DELEGATED CO-COMMISSIONING,NHS BARNSLEY CCG GP,16054106,"15,940.23 ",,
Department of Health,NHS Barnsley CCG,28/02/2017,C&M-PMS QOF Aspiration,PRC DELEGATED CO-COMMISSIONING,NHS BARNSLEY CCG GP,16054106,"6,208.13 ",,
Department of Health,NHS Barnsley CCG,28/02/2017,C&M-PMS Contract Value,PRC DELEGATED CO-COMMISSIONING,NHS BARNSLEY CCG GP,16029776,"(33,272.47)",,
Department of Health,NHS Barnsley CCG,28/02/2017,C&M-PMS GP Statutory Levy,PRC DELEGATED CO-COMMISSIONING,NHS BARNSLEY CCG GP,16029776,(154.68),,
Department of Health,NHS Barnsley CCG,28/02/2017,C&M-PMS Out of Hours Opt Outs,PRC DELEGATED CO-COMMISSIONING,NHS BARNSLEY CCG GP,16029776,(41.41),,
Department of Health,NHS Barnsley CCG,28/02/2017,C&M-PMS Voluntary Levy,PRC DELEGATED CO-COMMISSIONING,NHS BARNSLEY CCG GP,16029776,(27.06),,
Department of Health,NHS Barnsley CCG,28/02/2017,ME-PMS GP Pension EEs-PMS,PRC DELEGATED CO-COMMISSIONING,NHS BARNSLEY CCG GP,16029776,"(1,041.66)",,
Department of Health,NHS Barnsley CCG,28/02/2017,ME-PMS GP Pension ERs Adjs - PMS,PRC DELEGATED CO-COMMISSIONING,NHS BARNSLEY CCG GP,16029776,"(1,191.66)",,
Department of Health,NHS Barnsley CCG,28/02/2017,C&M-PMS Contract Value,PRC DELEGATED CO-COMMISSIONING,NHS BARNSLEY CCG GP,16054092,"69,855.24 ",,
Department of Health,NHS Barnsley CCG,28/02/2017,C&M-PMS DES Practice Doc Repatriation,PRC DELEGATED CO-COMMISSIONING,NHS BARNSLEY CCG GP,16054092,100.00 ,,
Department of Health,NHS Barnsley CCG,28/02/2017,C&M-PMS Out of Hours Opt Outs,PRC DELEGATED CO-COMMISSIONING,NHS BARNSLEY CCG GP,16054092,"(1,840.13)",,
Department of Health,NHS Barnsley CCG,28/02/2017,C&M-PMS Prem Healthcentre Rent,PRC DELEGATED CO-COMMISSIONING,NHS BARNSLEY CCG GP,16054092,"1,189.84 ",,
Department of Health,NHS Barnsley CCG,28/02/2017,C&M-PMS Prem Rates,PRC DELEGATED CO-COMMISSIONING,NHS BARNSLEY CCG GP,16054092,"3,064.83 ",,
Department of Health,NHS Barnsley CCG,28/02/2017,C&M-PMS QOF Aspiration,PRC DELEGATED CO-COMMISSIONING,NHS BARNSLEY CCG GP,16054092,"4,059.35 ",,
Department of Health,NHS Barnsley CCG,28/02/2017,Hcare Srv Rec NHS Trust-Contract Baseline,PATIENT TRANSPORT,YORKSHIRE AMBULANCE SERVICE NHS TRUST,15976192,"125,707.67 ",,
Department of Health,NHS Barnsley CCG,28/02/2017,Hcare Srv Rec NHS Trust-Contract Baseline,AMBULANCE SERVICES,YORKSHIRE AMBULANCE SERVICE NHS TRUST,15976206,"608,043.00 ",,
Department of Health,NHS Barnsley CCG,28/02/2017,Hcare Srv Rec NHS Trust-Non Contract,WINTER PRESSURES,YORKSHIRE AMBULANCE SERVICE NHS TRUST,15976213,"35,333.33 ",,
Department of Health,NHS Barnsley CCG,28/02/2017,Hcare Srv Rec NHS Trust-Contract Baseline,NHS 111,YORKSHIRE AMBULANCE SERVICE NHS TRUST,15976220,"47,766.40 ",,
,,,,,,,"25,178,234.13 ",,
